[Event "8th RTU Open 2018"]
[Site "Riga"]
[Date "2018.08.10"]
[Round "7"]
[White "Saveliev, Alexei"]
[Black "Kukk, Sander"]
[Result "0-1"]
[ECO "B06"]
[WhiteElo "2382"]
[BlackElo "2194"]
[Annotator "NA"]
[PlyCount "44"]
[EventDate "2018.08.06"]
[EventType "swiss"]
[EventCountry "LAT"]
[SourceTitle "playchess.com"]
[Source "ChessBase"]
[SourceQuality "1"]
[TimeControl "5400+30"]

1. e4 {[%emt 0:00:00]} g6 {[%emt 0:00:00]} 2. h4 {[%emt 0:00:00]} h5 {[%emt 0:00:48]} 3. d4 {[%emt 0:00:23]} Bg7 4. Nc3 {[%emt 0:00:29]} d6 {[%emt 0:09:04]} 5. Be3 {[%emt 0:02:46]} c6 {[%emt 0:01:12]} 6. Qd2 {[%emt 0:00:13]} Nf6 {[%emt 0:02:21]} 7. f3 {[%emt 0:00:06]} b5 {[%emt 0:04:00]} 8. Nh3 {[%emt 0:01:58]} Bxh3 {[%emt 0:06:47]} 9. Rxh3 {[%emt 0:00:08]} Nbd7 {[%emt 0:00:42]} 10. O-O-O {[%emt 0:03:13]} a6 {[%emt 0:02:19]} 11. Kb1 {[%emt 0:10:11]} Qc7 {[%emt 0:03:36]} 12. Ne2 {[%emt 0:14:24]} e5 {[%emt 0:09:13]} 13. Rh1 {[%emt 0:01:34]} d5 {[%emt 0:09:48]} 14. exd5 {[%emt 0:20:57]} Nxd5 {[%emt 0:00:31]} 15. Bg5 {[%emt 0:00:05]} N7b6 {[%emt 0:08:48]} 16. Qa5 {[%emt 0:10:03]} O-O {[%emt 0:07:33]} 17. g4 {[%emt 0:02:07]} hxg4 {[%emt 0:04:41]} 18. fxg4 {[%emt 0:00:07]} exd4 {[%emt 0:00:11]} 19. h5 {[%emt 0:09:30]} Qe5 {[%emt 0:10:03]} 20. h6 {[%emt 0:04:49]} Nc4 {[%emt 0:00:27]} 21. Qe1 {[%emt 0:00:02]} d3 {[%emt 0:01:44]} 22. Nc3 {[%emt 0:00:11]} Na3+ {[%emt 0:01:06]} 0-1

[Event "8th RTU Open 2018"]
[Site "Riga"]
[Date "2018.08.10"]
[Round "7"]
[White "Nikitenko, Mihail"]
[Black "Smirnova, Ekaterina"]
[Result "1-0"]
[ECO "C05"]
[WhiteElo "2374"]
[BlackElo "2165"]
[Annotator "NA"]
[PlyCount "109"]
[EventDate "2018.08.06"]
[EventType "swiss"]
[EventCountry "LAT"]
[SourceTitle "playchess.com"]
[Source "ChessBase"]
[SourceQuality "1"]
[TimeControl "5400+30"]

1. e4 e6 {[%emt 0:06:21]} 2. d4 {[%emt 0:00:07]} d5 {[%emt 0:00:18]} 3. Nd2 {[%emt 0:00:06]} Nf6 {[%emt 0:00:09]} 4. e5 {[%emt 0:00:06]} Nfd7 {[%emt 0:00:02]} 5. f4 {[%emt 0:00:10]} c5 {[%emt 0:00:02]} 6. c3 {[%emt 0:00:12]} Nc6 {[%emt 0:00:31]} 7. Ndf3 {[%emt 0:00:07]} Qb6 {[%emt 0:00:07]} 8. g3 {[%emt 0:00:06]} Be7 {[%emt 0:00:07]} 9. Ne2 {[%emt 0:00:17]} O-O {[%emt 0:00:08]} 10. Bh3 {[%emt 0:00:17]} cxd4 {[%emt 0:00:03]} 11. cxd4 {[%emt 0:00:11]} f6 {[%emt 0:00:08]} 12. exf6 {[%emt 0:00:22]} Nxf6 {[%emt 0:00:07]} 13. O-O {[%emt 0:00:04]} Ne4 {[%emt 0:00:10]} 14. Kg2 {[%emt 0:00:36]} Bf6 {[%emt 0:01:08]} 15. Ne5 {[%emt 0:11:31]} a5 {[%emt 0:07:13]} 16. Rb1 {[%emt 0:04:50]} a4 {[%emt 0:02:59]} 17. b4 {[%emt 0:05:25]} axb3 {[%emt 0:07:15]} 18. Rxb3 {[%emt 0:00:04]} Qa7 {[%emt 0:03:18]} 19. Ra3 {[%emt 0:06:39]} Qb8 {[%emt 0:01:42]} 20. Qb3 {[%emt 0:04:48]} Nxe5 {[%emt 0:05:25]} 21. fxe5 {[%emt 0:01:43]} Be7 {[%emt 0:00:11]} 22. Rxf8+ {[%emt 0:02:19]} Bxf8 {[%emt 0:00:12]} 23. Rxa8 {[%emt 0:00:14]} Qxa8 {[%emt 0:00:01]} 24. Nf4 {[%emt 0:00:29]} Qa6 {[%emt 0:00:51]} 25. Qc2 {[%emt 0:00:06]} b5 {[%emt 0:12:23]} 26. Qxc8 {[%emt 0:06:36]} Qxc8 {[%emt 0:01:43]} 27. Bxe6+ {[%emt 0:00:04]} Qxe6 {[%emt 0:00:03]} 28. Nxe6 {[%emt 0:00:04]} Nc3 {[%emt 0:00:46]} 29. Nc7 {[%emt 0:05:42]} b4 {[%emt 0:10:40]} 30. Kf3 {[%emt 0:01:37]} Be7 {[%emt 0:02:29]} 31. Bb2 {[%emt 0:00:50]} Bd8 {[%emt 0:00:11]} 32. Ne6 {[%emt 0:07:40]} Ba5 {[%emt 0:06:08]} 33. Nc5 {[%emt 0:00:05]} Nxa2 {[%emt 0:00:58]} 34. Nb3 {[%emt 0:00:04]} Bb6 {[%emt 0:00:14]} 35. Ke3 {[%emt 0:00:05]} Kf7 {[%emt 0:00:46]} 36. Kd3 {[%emt 0:00:04]} Ke6 {[%emt 0:00:11]} 37. Kc2 {[%emt 0:05:12]} Kf5 {[%emt 0:04:12]} 38. Kb1 {[%emt 0:08:18]} Nc3+ {[%emt 0:00:05]} 39. Bxc3 {[%emt 0:00:03]} bxc3 {[%emt 0:00:02]} 40. Kc2 {[%emt 0:00:03]} Kg4 {[%emt 0:01:15]} 41. e6 {[%emt 0:02:22]} Bd8 {[%emt 0:00:07]} 42. Na5 {[%emt 0:00:02]} Kh3 {[%emt 0:00:38]} 43. Nc6 {[%emt 0:00:02]} Bf6 {[%emt 0:00:07]} 44. Nb4 {[%emt 0:00:13]} Kxh2 {[%emt 0:01:01]} 45. Nxd5 {[%emt 0:00:04]} Bd8 {[%emt 0:00:49]} 46. e7 {[%emt 0:00:03]} Bxe7 {[%emt 0:00:03]} 47. Nxe7 {[%emt 0:00:03]} Kxg3 {[%emt 0:00:27]} 48. d5 {[%emt 0:00:04]} h5 {[%emt 0:00:27]} 49. d6 {[%emt 0:00:03]} g5 {[%emt 0:00:05]} 50. d7 {[%emt 0:00:03]} h4 {[%emt 0:00:04]} 51. d8=Q {[%emt 0:00:04]} h3 {[%emt 0:00:04]} 52. Qd3+ {[%emt 0:00:15]} Kg2 {[%emt 0:00:07]} 53. Nf5 {[%emt 0:00:04]} g4 {[%emt 0:00:26]} 54. Qe2+ {[%emt 0:00:14]} Kh1 {[%emt 0:00:13]} 55. Qf2 1-0

[Event "8th RTU Open 2018"]
[Site "Riga"]
[Date "2018.08.10"]
[Round "7"]
[White "Hedman, Erik"]
[Black "Huber, Philipp"]
[Result "1-0"]
[ECO "A53"]
[WhiteElo "2370"]
[BlackElo "2189"]
[Annotator "NA"]
[PlyCount "111"]
[EventDate "2018.08.06"]
[EventType "swiss"]
[EventCountry "LAT"]
[SourceTitle "playchess.com"]
[Source "ChessBase"]
[SourceQuality "1"]
[TimeControl "5400+30"]

1. d4 {[%emt 0:00:00]} Nf6 {[%emt 0:00:00]} 2. c4 {[%emt 0:00:00]} d6 {[%emt 0:00:00]} 3. Nf3 {[%emt 0:00:13]} Nbd7 {[%emt 0:00:14]} 4. Nc3 {[%emt 0:00:44]} c6 {[%emt 0:00:28]} 5. e4 {[%emt 0:00:23]} e5 {[%emt 0:00:14]} 6. Be2 {[%emt 0:00:05]} Be7 {[%emt 0:00:05]} 7. O-O {[%emt 0:00:04]} O-O {[%emt 0:00:12]} 8. Qc2 {[%emt 0:00:20]} Qc7 {[%emt 0:00:18]} 9. Rd1 {[%emt 0:03:49]} Re8 {[%emt 0:01:21]} 10. Bg5 {[%emt 0:01:39]} Nf8 {[%emt 0:03:27]} 11. h3 {[%emt 0:16:23]} Nh5 {[%emt 0:09:43]} 12. Be3 {[%emt 0:08:46]} g6 {[%emt 0:07:21]} 13. Rac1 {[%emt 0:07:44]} Qb8 {[%emt 0:07:25]} 14. b4 {[%emt 0:05:16]} Ne6 {[%emt 0:01:12]} 15. Bf1 {[%emt 0:06:04]} exd4 {[%emt 0:01:48]} 16. Nxd4 {[%emt 0:00:16]} Bg5 {[%emt 0:02:39]} 17. Qd2 {[%emt 0:02:02]} Bxe3 {[%emt 0:00:34]} 18. Qxe3 {[%emt 0:00:04]} a5 {[%emt 0:02:30]} 19. b5 {[%emt 0:02:36]} Qc7 {[%emt 0:00:16]} 20. Qd2 {[%emt 0:07:06]} Rd8 {[%emt 0:10:46]} 21. g3 {[%emt 0:04:42]} Nhg7 {[%emt 0:01:23]} 22. Rc2 {[%emt 0:01:31]} Bd7 {[%emt 0:02:20]} 23. Nf3 {[%emt 0:04:28]} Be8 {[%emt 0:00:38]} 24. Qh6 {[%emt 0:01:44]} f6 {[%emt 0:01:21]} 25. Rcd2 {[%emt 0:00:30]} Nc5 {[%emt 0:01:57]} 26. Qf4 {[%emt 0:01:03]} Nh5 {[%emt 0:00:17]} 27. Qe3 {[%emt 0:00:04]} Qe7 {[%emt 0:03:05]} 28. Nd4 {[%emt 0:02:51]} Ng7 {[%emt 0:00:47]} 29. Bg2 {[%emt 0:00:53]} Rac8 {[%emt 0:01:05]} 30. Re1 {[%emt 0:00:36]} Qf7 {[%emt 0:04:48]} 31. Bf1 {[%emt 0:00:57]} Qf8 {[%emt 0:01:19]} 32. Red1 {[%emt 0:01:09]} a4 {[%emt 0:01:16]} 33. Nc2 {[%emt 0:01:06]} Bf7 {[%emt 0:01:25]} 34. Be2 {[%emt 0:02:18]} Nge6 {[%emt 0:06:23]} 35. h4 {[%emt 0:00:40]} h5 {[%emt 0:03:24]} 36. Bf1 {[%emt 0:02:34]} Nc7 {[%emt 0:04:22]} 37. Qf4 {[%emt 0:02:08]} Ne8 {[%emt 0:00:11]} 38. Nb4 {[%emt 0:04:05]} Be6 {[%emt 0:00:59]} 39. Nd3 {[%emt 0:00:48]} Nxd3 {[%emt 0:02:56]} 40. Bxd3 {[%emt 0:00:11]} Ra8 {[%emt 0:03:24]} 41. Qe3 {[%emt 0:00:41]} Qf7 {[%emt 0:00:47]} 42. c5 {[%emt 0:05:47]} a3 {[%emt 0:04:39]} 43. Bf1 {[%emt 0:01:07]} Qf8 {[%emt 0:01:45]} 44. Qf4 {[%emt 0:01:05]} Rd7 {[%emt 0:00:24]} 45. bxc6 {[%emt 0:01:33]} bxc6 {[%emt 0:00:02]} 46. cxd6 {[%emt 0:00:04]} Rad8 47. e5 {[%emt 0:00:07]} fxe5 {[%emt 0:00:16]} 48. Qxe5 {[%emt 0:00:03]} Rxd6 {[%emt 0:00:06]} 49. Ne4 {[%emt 0:00:09]} Bd5 {[%emt 0:00:56]} 50. Nxd6 {[%emt 0:00:06]} Nxd6 {[%emt 0:00:47]} 51. Bg2 {[%emt 0:01:55]} Nf7 {[%emt 0:00:08]} 52. Bxd5 {[%emt 0:00:53]} cxd5 {[%emt 0:00:01]} 53. Rxd5 {[%emt 0:00:37]} Re8 {[%emt 0:02:31]} 54. Qf6 {[%emt 0:00:17]} Ne5 {[%emt 0:00:26]} 55. Qxf8+ {[%emt 0:00:43]} Kxf8 {[%emt 0:00:01]} 56. Rd8 1-0

[Event "8th RTU Open 2018"]
[Site "Riga"]
[Date "2018.08.10"]
[Round "7"]
[White "Oboladze, Luka"]
[Black "Berzinsh, Roland"]
[Result "0-1"]
[ECO "A05"]
[WhiteElo "2349"]
[BlackElo "2408"]
[Annotator "NA"]
[PlyCount "64"]
[EventDate "2018.08.06"]
[EventType "swiss"]
[EventCountry "LAT"]
[SourceTitle "playchess.com"]
[Source "ChessBase"]
[SourceQuality "1"]
[TimeControl "5400+30"]

1. Nf3 {[%emt 0:00:00]} Nf6 {[%emt 0:00:59]} 2. g3 {[%emt 0:00:10]} c5 {[%emt 0:01:06]} 3. Bg2 {[%emt 0:00:16]} d5 {[%emt 0:00:09]} 4. c4 {[%emt 0:00:43]} d4 {[%emt 0:00:12]} 5. e3 {[%emt 0:00:17]} Nc6 {[%emt 0:02:05]} 6. exd4 {[%emt 0:00:11]} cxd4 {[%emt 0:00:08]} 7. O-O {[%emt 0:00:17]} e6 {[%emt 0:03:20]} 8. d3 {[%emt 0:00:59]} Bd6 {[%emt 0:00:22]} 9. Na3 {[%emt 0:00:34]} O-O {[%emt 0:00:55]} 10. Nc2 {[%emt 0:00:18]} e5 {[%emt 0:01:40]} 11. b4 {[%emt 0:10:19]} Nxb4 {[%emt 0:02:37]} 12. Nxb4 {[%emt 0:03:11]} Bxb4 {[%emt 0:00:12]} 13. Nxe5 {[%emt 0:00:17]} Qa5 {[%emt 0:02:52]} 14. Rb1 {[%emt 0:04:11]} Bc3 {[%emt 0:00:12]} 15. Rb5 {[%emt 0:02:12]} Qxa2 {[%emt 0:00:22]} 16. Bg5 {[%emt 0:05:54]} Qa6 {[%emt 0:11:16]} 17. Qb3 {[%emt 0:04:15]} Qe6 {[%emt 0:01:13]} 18. f4 {[%emt 0:03:12]} a5 {[%emt 0:07:01]} 19. Rb6 {[%emt 0:04:25]} a4 {[%emt 0:01:20]} 20. Qb1 {[%emt 0:03:28]} Qe8 {[%emt 0:05:20]} 21. Bxf6 {[%emt 0:28:33]} gxf6 {[%emt 0:13:10]} 22. Rxf6 {[%emt 0:01:14]} Qe7 {[%emt 0:05:54]} 23. Rh6 {[%emt 0:01:48]} f6 {[%emt 0:05:46]} 24. Be4 {[%emt 0:10:17]} fxe5 {[%emt 0:00:22]} 25. Rxh7 {[%emt 0:00:16]} Rf7 {[%emt 0:01:14]} 26. Rxf7 {[%emt 0:01:28]} Kxf7 {[%emt 0:05:15]} 27. fxe5+ {[%emt 0:00:22]} Kg7 {[%emt 0:00:03]} 28. Qd1 {[%emt 0:06:47]} Qxe5 {[%emt 0:09:30]} 29. Rf4 {[%emt 0:02:39]} a3 {[%emt 0:04:44]} 30. Qf3 {[%emt 0:03:06]} Be6 {[%emt 0:00:23]} 31. Rh4 {[%emt 0:00:07]} a2 {[%emt 0:01:05]} 32. Rh7+ {[%emt 0:00:37]} Kg8 {[%emt 0:00:05]} 0-1

[Event "8th RTU Open 2018"]
[Site "Riga"]
[Date "2018.08.10"]
[Round "7"]
[White "Sawlin, Leonid"]
[Black "Narva, Triin"]
[Result "1-0"]
[ECO "C41"]
[WhiteElo "2346"]
[BlackElo "2117"]
[Annotator "NA"]
[PlyCount "95"]
[EventDate "2018.08.06"]
[EventType "swiss"]
[EventCountry "LAT"]
[SourceTitle "playchess.com"]
[Source "ChessBase"]
[SourceQuality "1"]
[TimeControl "5400+30"]

1. e4 {[%emt 0:05:31]} d6 {[%emt 0:00:00]} 2. d4 {[%emt 0:00:42]} Nf6 {[%emt 0:00:00]} 3. Nc3 {[%emt 0:00:18]} e5 {[%emt 0:00:14]} 4. Nf3 {[%emt 0:00:34]} Nbd7 {[%emt 0:00:10]} 5. Bc4 {[%emt 0:00:08]} Be7 {[%emt 0:00:06]} 6. O-O {[%emt 0:00:07]} O-O {[%emt 0:00:06]} 7. Re1 {[%emt 0:00:01]} c6 {[%emt 0:00:30]} 8. a4 {[%emt 0:00:07]} a5 {[%emt 0:00:47]} 9. h3 {[%emt 0:00:23]} Qc7 {[%emt 0:03:26]} 10. b3 {[%emt 0:02:15]} exd4 {[%emt 0:20:37]} 11. Nxd4 {[%emt 0:01:33]} Nc5 {[%emt 0:03:34]} 12. Bf4 {[%emt 0:01:48]} Nfd7 {[%emt 0:04:59]} 13. Nf5 {[%emt 0:02:22]} Ne5 {[%emt 0:00:22]} 14. Nxe7+ {[%emt 0:01:17]} Qxe7 {[%emt 0:00:10]} 15. Bf1 {[%emt 0:00:16]} Qf6 {[%emt 0:01:29]} 16. Qd2 {[%emt 0:02:02]} h6 {[%emt 0:11:31]} 17. Rad1 {[%emt 0:00:51]} g5 {[%emt 0:28:28]} 18. Be3 {[%emt 0:04:50]} Bxh3 {[%emt 0:04:47]} 19. Qxd6 {[%emt 0:00:30]} Qxd6 {[%emt 0:08:39]} 20. Rxd6 {[%emt 0:02:29]} Ne6 {[%emt 0:04:58]} 21. f3 {[%emt 0:00:27]} Nf4 {[%emt 0:01:03]} 22. gxh3 {[%emt 0:02:22]} Nxf3+ {[%emt 0:00:10]} 23. Kf2 {[%emt 0:00:03]} Nxe1 {[%emt 0:00:15]} 24. Kxe1 {[%emt 0:01:16]} Ng6 {[%emt 0:01:39]} 25. Bb6 {[%emt 0:01:01]} Rfe8 {[%emt 0:00:34]} 26. Bc4 {[%emt 0:00:12]} Ne5 {[%emt 0:01:41]} 27. Rxh6 {[%emt 0:00:19]} Nxc4 {[%emt 0:01:18]} 28. bxc4 {[%emt 0:00:01]} Kg7 {[%emt 0:00:38]} 29. Rd6 {[%emt 0:00:12]} Re6 {[%emt 0:00:31]} 30. Rd3 {[%emt 0:01:30]} Kg6 {[%emt 0:00:32]} 31. Kf2 {[%emt 0:00:14]} f5 {[%emt 0:00:53]} 32. exf5+ {[%emt 0:02:35]} Kxf5 {[%emt 0:00:05]} 33. Rd7 {[%emt 0:00:07]} Rh8 {[%emt 0:00:48]} 34. Kg2 {[%emt 0:01:06]} Rh4 {[%emt 0:00:28]} 35. Nd1 {[%emt 0:02:08]} Re2+ {[%emt 0:01:03]} 36. Kf3 {[%emt 0:00:47]} Ree4 {[%emt 0:00:39]} 37. Ne3+ {[%emt 0:00:22]} Ke6 {[%emt 0:00:40]} 38. Rxb7 {[%emt 0:00:30]} Re5 {[%emt 0:00:31]} 39. Kg2 {[%emt 0:01:32]} Rhe4 {[%emt 0:00:19]} 40. Rb8 {[%emt 0:00:25]} Kf7 {[%emt 0:00:34]} 41. Rb7+ {[%emt 0:01:31]} Kg6 {[%emt 0:00:32]} 42. Ng4 {[%emt 0:00:28]} Re6 {[%emt 0:00:28]} 43. c3 {[%emt 0:01:51]} Rxc4 {[%emt 0:00:21]} 44. Bd4 {[%emt 0:00:21]} Rxa4 {[%emt 0:00:28]} 45. Kf3 {[%emt 0:01:03]} Ra1 {[%emt 0:00:47]} 46. Rg7+ {[%emt 0:00:53]} Kf5 {[%emt 0:00:31]} 47. Ne3+ {[%emt 0:00:17]} Rxe3+ {[%emt 0:00:07]} 48. Bxe3 {[%emt 0:00:08] Ke4+ Kxe4} 1-0

[Event "8th RTU Open 2018"]
[Site "Riga"]
[Date "2018.08.10"]
[Round "7"]
[White "Dhulipalla, Bala Chandra Prasad"]
[Black "Adocchio, Giampiero"]
[Result "1-0"]
[ECO "D02"]
[WhiteElo "2333"]
[BlackElo "2136"]
[Annotator "NA"]
[PlyCount "123"]
[EventDate "2018.08.06"]
[EventType "swiss"]
[EventCountry "LAT"]
[SourceTitle "playchess.com"]
[Source "ChessBase"]
[SourceQuality "1"]
[TimeControl "5400+30"]

1. d4 {[%emt 0:00:00]} Nf6 {[%emt 0:00:00]} 2. Nf3 {[%emt 0:00:00]} d5 {[%emt 0:00:09]} 3. Bf4 {[%emt 0:00:00]} c5 {[%emt 0:00:49]} 4. e3 {[%emt 0:00:00]} Nc6 {[%emt 0:00:19]} 5. Nbd2 {[%emt 0:00:00]} e6 {[%emt 0:02:32]} 6. c3 {[%emt 0:00:11]} Bd6 {[%emt 0:02:11]} 7. Bg3 {[%emt 0:00:07]} O-O {[%emt 0:00:58]} 8. Bb5 {[%emt 0:01:45]} Ne7 {[%emt 0:07:42]} 9. Bd3 {[%emt 0:02:06]} cxd4 {[%emt 0:03:50]} 10. exd4 {[%emt 0:01:05]} b6 {[%emt 0:04:47]} 11. Qe2 {[%emt 0:09:48]} Bb7 {[%emt 0:08:10]} 12. Ne5 {[%emt 0:04:56]} Nf5 {[%emt 0:04:17]} 13. O-O {[%emt 0:01:40]} Nxg3 {[%emt 0:01:59]} 14. fxg3 {[%emt 0:02:02]} Bxe5 {[%emt 0:04:51]} 15. Qxe5 {[%emt 0:20:25]} Re8 {[%emt 0:12:55]} 16. Rae1 {[%emt 0:10:45]} Qe7 {[%emt 0:05:35]} 17. Rf3 {[%emt 0:09:51]} Nd7 {[%emt 0:05:29]} 18. Qc7 {[%emt 0:01:45]} Nf8 {[%emt 0:00:28]} 19. Qf4 {[%emt 0:00:20]} Rac8 {[%emt 0:01:35]} 20. g4 {[%emt 0:01:55]} Qc7 {[%emt 0:04:47]} 21. Qg5 {[%emt 0:03:41]} f6 {[%emt 0:01:26]} 22. Qh5 {[%emt 0:03:22]} e5 {[%emt 0:02:18]} 23. dxe5 {[%emt 0:08:23]} Rxe5 {[%emt 0:00:36]} 24. Rxe5 {[%emt 0:01:49]} Qxe5 {[%emt 0:01:21]} 25. Qxe5 {[%emt 0:01:10]} fxe5 {[%emt 0:00:05]} 26. Bc2 {[%emt 0:01:52]} g6 {[%emt 0:03:38]} 27. Bb3 {[%emt 0:02:28]} Nd7 {[%emt 0:01:01]} 28. Ne4 {[%emt 0:02:57]} Rd8 {[%emt 0:03:40]} 29. Nf6+ {[%emt 0:05:59]} Nxf6 {[%emt 0:02:42]} 30. Rxf6 {[%emt 0:00:02]} Bc8 {[%emt 0:01:31]} 31. h3 {[%emt 0:00:39]} Kg7 {[%emt 0:03:01]} 32. Rc6 {[%emt 0:00:06]} Kh6 {[%emt 0:03:52]} 33. Rc7 {[%emt 0:00:56]} d4 {[%emt 0:00:47]} 34. cxd4 {[%emt 0:01:35]} exd4 {[%emt 0:00:04]} 35. Kf2 {[%emt 0:00:26]} d3 {[%emt 0:02:03]} 36. Bd1 {[%emt 0:00:54]} a5 {[%emt 0:02:52]} 37. h4 {[%emt 0:00:19]} g5 {[%emt 0:00:04]} 38. Rc6+ {[%emt 0:01:01]} Kg7 {[%emt 0:00:02]} 39. h5 {[%emt 0:00:07]} d2 {[%emt 0:01:51]} 40. h6+ {[%emt 0:00:07]} Kf7 {[%emt 0:00:45]} 41. Rc7+ {[%emt 0:01:21]} Kg6 {[%emt 0:01:07]} 42. Rc6+ {[%emt 0:00:38]} Kf7 {[%emt 0:00:01]} 43. Rxb6 {[%emt 0:00:51]} Rd4 {[%emt 0:00:37]} 44. Ke3 {[%emt 0:00:44]} Rd5 {[%emt 0:01:31]} 45. Rc6 {[%emt 0:00:31]} Be6 {[%emt 0:01:31]} 46. Rc7+ {[%emt 0:00:25]} Kg6 {[%emt 0:00:06]} 47. Rc6 {[%emt 0:00:28]} Kf7 {[%emt 0:00:02]} 48. a3 {[%emt 0:00:51]} Bxg4 {[%emt 0:01:14]} 49. Bxg4 {[%emt 0:00:05]} d1=Q {[%emt 0:00:05]} 50. Bxd1 {[%emt 0:00:02]} Rxd1 {[%emt 0:00:07]} 51. Rc5 {[%emt 0:00:23]} Rb1 {[%emt 0:00:30]} 52. Rxa5 {[%emt 0:02:34]} Rxb2 {[%emt 0:00:10]} 53. g4 {[%emt 0:00:22]} Rg2 {[%emt 0:01:33]} 54. Rxg5 {[%emt 0:00:22]} Rg3+ {[%emt 0:00:06]} 55. Kf4 {[%emt 0:00:03]} Rxa3 {[%emt 0:00:09]} 56. Rg7+ {[%emt 0:00:01]} Kf6 {[%emt 0:00:11]} 57. g5+ {[%emt 0:00:02]} Ke6 {[%emt 0:00:01]} 58. Kg4 {[%emt 0:00:58]} Ra4+ {[%emt 0:00:34]} 59. Kh5 {[%emt 0:00:06]} Ra1 {[%emt 0:01:52]} 60. Rxh7 {[%emt 0:00:08]} Rh1+ {[%emt 0:00:49]} 61. Kg6 {[%emt 0:00:06]} Rg1 {[%emt 0:00:38]} 62. Ra7 {[%emt 0:00:13]} 1-0

[Event "8th RTU Open 2018"]
[Site "Riga"]
[Date "2018.08.10"]
[Round "7"]
[White "Vaishali R"]
[Black "Kulaots, Kaido"]
[Result "1/2-1/2"]
[ECO "B51"]
[WhiteElo "2294"]
[BlackElo "2554"]
[Annotator "ChessBase"]
[PlyCount "130"]
[EventDate "2018.08.06"]
[EventType "swiss"]
[EventCountry "LAT"]
[SourceTitle "playchess.com"]
[Source "ChessBase"]
[SourceQuality "1"]
[TimeControl "5400+30"]

1. e4 {[%emt 0:00:00]} c5 {[%emt 0:00:00]} 2. Nf3 {[%emt 0:00:00]} d6 {[%emt 0:00:10]} 3. Bb5+ {[%emt 0:00:00]} Nd7 {[%emt 0:00:55]} 4. c3 {[%emt 0:01:22]} Ngf6 {[%emt 0:01:47]} 5. Qe2 {[%emt 0:00:19]} a6 {[%emt 0:01:17]} 6. Ba4 {[%emt 0:00:06]} e6 {[%emt 0:01:58]} 7. O-O {[%emt 0:00:44]} Be7 {[%emt 0:00:51]} 8. d4 {[%emt 0:00:15]} cxd4 {[%emt 0:01:16]} 9. cxd4 {[%emt 0:00:06]} b5 {[%emt 0:00:05]} 10. Bc2 {[%emt 0:00:51]} Bb7 {[%emt 0:00:05]} 11. a4 {[%emt 0:11:19]} O-O {[%emt 0:05:52]} 12. Nbd2 {[%emt 0:01:53]} bxa4 {[%emt 0:07:38]} 13. Rxa4 {[%emt 0:06:12]} a5 {[%emt 0:02:46]} 14. b3 {[%emt 0:03:16]} Nb8 {[%emt 0:22:59]} 15. Bd3 {[%emt 0:15:55]} Nc6 {[%emt 0:09:51]} 16. Ba3 {[%emt 0:04:11]} d5 {[%emt 0:06:58]} 17. e5 {[%emt 0:04:40]} Nd7 {[%emt 0:00:24]} 18. Bxe7 {[%emt 0:00:44]} Qxe7 {[%emt 0:00:12]} 19. h4 {[%emt 0:07:06]} h6 {[%emt 0:03:50]} 20. Rc1 {[%emt 0:01:32]} Rfc8 {[%emt 0:01:15]} 21. Raa1 {[%emt 0:01:57]} Qd8 {[%emt 0:01:15]} 22. Nf1 {[%emt 0:03:42]} Qb6 {[%emt 0:01:45]} 23. Qe3 {[%emt 0:00:15]} Nb4 {[%emt 0:03:58]} 24. Ng3 {[%emt 0:03:11]} Ba6 {[%emt 0:01:20]} 25. Bxa6 {[%emt 0:07:44]} Qxa6 {[%emt 0:00:04]} 26. Rxc8+ {[%emt 0:00:26]} Rxc8 {[%emt 0:00:28]} 27. Rc1 {[%emt 0:00:18]} Nf8 {[%emt 0:04:17]} 28. Ne1 {[%emt 0:05:03]} Ng6 {[%emt 0:01:01]} 29. h5 {[%emt 0:01:12]} Ne7 {[%emt 0:00:05]} 30. Rxc8+ {[%emt 0:03:55]} Qxc8 {[%emt 0:00:08]} 31. Nd3 {[%emt 0:00:33]} Nc2 {[%emt 0:05:40]} 32. Qd2 {[%emt 0:04:35]} Nxd4 {[%emt 0:00:17]} 33. Qxa5 {[%emt 0:00:19]} Nxb3 {[%emt 0:00:13]} 34. Qb4 {[%emt 0:01:01]} Nc1 {[%emt 0:01:01]} 35. Nc5 {[%emt 0:00:05]} Qc7 {[%emt 0:09:22]} 36. Qa3 {[%emt 0:05:46]} Na2 {[%emt 0:00:19]} 37. Kh2 {[%emt 0:00:39]} Nc8 {[%emt 0:02:19]} 38. f4 {[%emt 0:05:25]} Qa7 {[%emt 0:00:29]} 39. Qxa7 {[%emt 0:02:04]} Nxa7 {[%emt 0:00:05]} 40. f5 {[%emt 0:00:02]} d4 {[%emt 0:02:38]} 41. fxe6 {[%emt 0:01:07]} fxe6 {[%emt 0:00:04]} 42. Nxe6 {[%emt 0:00:30]} d3 {[%emt 0:00:07]} 43. Ne4 {[%emt 0:00:12]} Nc6 {[%emt 0:00:09]} 44. N6c5 {[%emt 0:00:46]} Nxe5 {[%emt 0:00:07]} 45. Kg3 {[%emt 0:00:27]} Nb4 {[%emt 0:01:45]} 46. Nd2 {[%emt 0:00:19]} Nd5 {[%emt 0:00:34]} 47. Nf3 {[%emt 0:00:50]} Nxf3 {[%emt 0:02:43]} 48. Kxf3 {[%emt 0:00:02]} d2 {[%emt 0:00:05]} 49. Ke2 {[%emt 0:00:01]} Ne3 {[%emt 0:00:13]} 50. Kxd2 {[%emt 0:00:04]} Nxg2 {[%emt 0:00:02]} 51. Nd3 {[%emt 0:00:56]} Kf7 {[%emt 0:00:22]} 52. Ke2 {[%emt 0:00:06]} Kf6 {[%emt 0:00:16]} 53. Kf3 {[%emt 0:00:13]} Nh4+ {[%emt 0:00:04]} 54. Kf4 {[%emt 0:00:23]} Nf5 {[%emt 0:00:05]} 55. Ne5 {[%emt 0:00:54]} Nd6 {[%emt 0:00:09]} 56. Ng4+ {[%emt 0:00:23]} Ke6 {[%emt 0:00:04]} 57. Ne3 {[%emt 0:00:14]} Ne8 {[%emt 0:00:23]} 58. Nf5 {[%emt 0:00:37]} Kf7 {[%emt 0:00:04]} 59. Ng3 {[%emt 0:01:22]} Nf6 {[%emt 0:00:24]} 60. Kf5 {[%emt 0:00:15]} Nd5 {[%emt 0:00:12]} 61. Ke5 {[%emt 0:00:10]} Ne7 {[%emt 0:00:25]} 62. Ne4 {[%emt 0:00:35]} Nc6+ {[%emt 0:00:14]} 63. Kf5 {[%emt 0:00:06]} Ke7 {[%emt 0:00:29]} 64. Kg6 {[%emt 0:00:44]} Kf8 {[%emt 0:00:04]} 65. Kf5 {[%emt 0:00:58]} Kf7 1/2-1/2

[Event "8th RTU Open 2018"]
[Site "Riga"]
[Date "2018.08.10"]
[Round "7"]
[White "Meessen, Rudolf"]
[Black "Kollars, Dmitrij"]
[Result "0-1"]
[ECO "D00"]
[WhiteElo "2281"]
[BlackElo "2549"]
[Annotator "ChessBase"]
[PlyCount "60"]
[EventDate "2018.08.06"]
[EventType "swiss"]
[EventCountry "LAT"]
[SourceTitle "playchess.com"]
[Source "ChessBase"]
[SourceQuality "1"]
[TimeControl "5400+30"]

1. d4 {[%emt 0:09:52]} d5 {[%emt 0:00:00]} 2. Bf4 {[%emt 0:00:07]} Nf6 {[%emt 0:00:00]} 3. e3 {[%emt 0:00:06]} c5 {[%emt 0:00:09]} 4. Nc3 {[%emt 0:00:43]} cxd4 {[%emt 0:00:19]} 5. exd4 {[%emt 0:00:06]} a6 {[%emt 0:00:10]} 6. Nf3 {[%emt 0:00:05]} Nc6 {[%emt 0:00:14]} 7. Ne5 {[%emt 0:00:05]} e6 {[%emt 0:00:18]} 8. Nxc6 {[%emt 0:00:06]} bxc6 {[%emt 0:00:04]} 9. Na4 {[%emt 0:00:06]} Bd6 {[%emt 0:00:24]} 10. Bxd6 {[%emt 0:00:25]} Qxd6 {[%emt 0:00:05]} 11. Bd3 {[%emt 0:00:04]} O-O {[%emt 0:00:41]} 12. O-O {[%emt 0:00:05]} Nd7 {[%emt 0:00:07]} 13. Re1 {[%emt 0:02:54]} Re8 {[%emt 0:04:46]} 14. c4 {[%emt 0:02:04]} e5 {[%emt 0:05:44]} 15. dxe5 {[%emt 0:00:48]} Rxe5 {[%emt 0:01:15]} 16. Qd2 {[%emt 0:06:03]} Bb7 {[%emt 0:05:01]} 17. c5 {[%emt 0:03:36]} Qf6 {[%emt 0:04:43]} 18. Qb4 {[%emt 0:04:49]} Rae8 {[%emt 0:05:46]} 19. Rxe5 {[%emt 0:09:53]} Nxe5 {[%emt 0:00:09]} 20. Re1 {[%emt 0:00:49]} Re7 {[%emt 0:12:53]} 21. Bxa6 {[%emt 0:00:55]} g5 {[%emt 0:00:53]} 22. Bf1 {[%emt 0:01:40]} d4 {[%emt 0:02:01]} 23. Rd1 {[%emt 0:06:15]} Rd7 {[%emt 0:05:15]} 24. Nb6 {[%emt 0:00:11]} Rd8 {[%emt 0:00:21]} 25. a4 {[%emt 0:02:07]} d3 {[%emt 0:02:27]} 26. Qc3 {[%emt 0:08:52]} Ba6 {[%emt 0:01:42]} 27. Re1 {[%emt 0:07:06]} Qf4 {[%emt 0:12:16]} 28. Rd1 {[%emt 0:02:20]} Ng4 {[%emt 0:01:29]} 29. Bxd3 {[%emt 0:03:16]} Qxh2+ {[%emt 0:00:39]} 30. Kf1 {[%emt 0:00:11]} Re8 {[%emt 0:00:12]} 0-1